[Event "22nd Rochefort Festival Masters 2024"]
[Site "Rochefort"]
[Date "2024.02.20"]
[Round "6.2"]
[White "Sivuk, Vitaly"]
[Black "Larkin, Vladyslav"]
[Result "1-0"]
[ECO "A60"]
[WhiteElo "2502"]
[BlackElo "2484"]
[Annotator "TA"]
[PlyCount "91"]
[EventDate "2024.02.18"]
[EventType "swiss"]
[EventCountry "FRA"]
[SourceTitle "playchess.com"]
[Source "ChessBase"]
[SourceQuality "1"]
[TimeControl "40/5400+30:1800+30"]

{[%evp 25,91,6,58,43,62,58,61,62,63,63,71,62,61,57,68,41,70,56,45,59,80,65,74,76,100,98,97,41,37,44,114,110,122,94,101,114,103,104,131,140,145,138,147,126,155,148,206,180,203,203,190,198,201,197,405,376,514,530,508,519,515,539,890,847,1858,1855,1710,1489]} 1. d4 {[%emt 0:12:37]} Nf6 {[%emt 1:31:00]} 2. c4 {[%emt 1:18:53]} e6 {[%emt 0:00:00]} 3. Bg5 {[%emt 0:00:30]} c5 {[%emt 0:00:00]} 4. d5 {[%emt 0:00:30]} exd5 {[%emt 0:00:00]} 5. cxd5 {[%emt 0:00:00]} d6 {[%emt 0:02:00]} 6. Nc3 {[%emt 0:00:00]} Be7 {[%emt 0:00:00]} 7. Nf3 {[%emt 0:01:30]} O-O {[%emt 0:01:00]} 8. e3 {[%emt 0:00:30]} Bg4 {[%emt 0:00:30]} 9. Be2 {[%emt 0:00:30]} Bxf3 {[%emt 0:00:00]} 10. Bxf3 {[%emt 0:00:00]} Nbd7 {[%emt 0:00:00]} 11. O-O {[%emt 0:00:00]} Rb8 {[%emt 0:01:30]} 12. a4 {[%emt 0:00:00]} a6 {[%emt 0:00:00]} 13. a5 {[%emt 0:00:00]} Re8 {[%emt 0:01:00]} (13... Ne8 $11 14. Bf4 Bg5) 14. Bf4 {[%emt 0:00:00]} Bf8 {[%emt 0:00:30]} 15. Qc2 {[%emt 0:03:00]} Qc7 {[%emt 0:00:00]} 16. h3 {[%emt 0:00:30]} g6 {[%emt 0:01:00]} 17. Ra4 {[%emt 0:00:00]} Ne5 {[%emt 0:00:00]} 18. Be2 {[%emt 0:00:00]} Bg7 {[%emt 0:00:00]} 19. Bh2 {[%emt 0:01:30]} Qe7 {[%emt 0:01:30]} 20. Rb1 {[%emt 0:00:00]} Rbc8 {[%emt 0:00:00]} 21. Qd2 {[%emt 0:01:00]} c4 {[%emt 0:01:00]} 22. Rb4 {[%emt 0:00:00]} Qc7 {[%emt 0:00:00]} 23. Ra1 {[%emt 0:00:00]} Nfd7 {[%emt 0:01:00]} 24. Ne4 {[%emt 0:01:30]} h6 {[%emt 0:00:30]} 25. Raa4 {[%emt 0:00:30]} f5 {[%emt 0:00:30]} 26. Bxe5 {[%emt 0:00:30]} ({White should try} 26. Rxc4 $16 Qb8 (26... Nxc4 $2 {is the wrong capture.} 27. Rxc4 Qxc4 28. Bxc4 $18) 27. Rxc8 Rxc8 28. Bxe5 Bxe5 29. f4) 26... Nxe5 $14 {[%emt 0:00:00]} 27. Nc3 {[%emt 0:00:30]} Nd7 {[%emt 0:01:00]} (27... Qe7 $14) 28. Rxc4 $16 {[%emt 0:00:00]} Nc5 {[%emt 0:00:30]} 29. Ra3 {[%emt 0:01:00]} Qe7 {[%emt 0:00:30]} 30. g3 {[%emt 0:00:30]} Nd7 {[%emt 0:00:30]} 31. Raa4 {[%emt 0:00:00]} Nc5 {[%emt 0:00:30]} 32. Rab4 {[%emt 0:01:00]} Rc7 {[%emt 0:00:30]} 33. Qc2 {[%emt 0:00:30]} Rec8 {[%emt 0:00:30]} 34. Kg2 {[%emt 0:00:30]} Qf7 {[%emt 0:00:30]} 35. h4 {[%emt 0:00:00]} h5 {[%emt 0:00:30] [#]} (35... Be5 $16 36. Na4 Nxa4 37. Qxa4 g5) 36. Bf3 $1 $18 {[%emt 0:00:00]} Nd7 {[%emt 0:00:30] [#]} 37. Ne2 $1 {[%emt 0:01:30]} Ne5 {[%emt 0:00:00]} 38. Rxc7 {[%emt 0:00:00]} Rxc7 {[%emt 0:00:00]} 39. Qb3 {[%emt 0:01:00]} Kh7 $2 {[%emt 0:01:30]} (39... Nxf3 {is a better defense.} 40. Kxf3 Be5) 40. Nf4 $18 {[%emt 0:00:00]} Nd7 {[%emt 0:00:30]} 41. Rxb7 {[%emt 0:31:00]} Nc5 {[%emt 0:29:32]} 42. Rxc7 {[%emt 0:00:00]} Qxc7 {[%emt 0:00:03]} 43. Qa3 {[%emt 0:00:00]} Nb7 {[%emt 0:01:08]} 44. b4 {[%emt 0:00:00]} Qc4 {[%emt 0:00:00]} 45. Qa4 {[%emt 0:02:00]} Nc5 {[%emt 0:00:00]} 46. Qe8 {[%emt 0:00:00]} (46. bxc5 $2 {perishes.} Qxa4 47. c6 Bc3 $19 (47... Qxa5 $2 48. Ne6 $19) (47... Qxa5 $2 48. Ne6 $19)) 1-0

[Event "22nd Rochefort Festival Masters 2024"]
[Site "Rochefort"]
[Date "2024.02.20"]
[Round "6.3"]
[White "Boyer, Mahel"]
[Black "Laurent-Paoli, Pierre"]
[Result "1/2-1/2"]
[ECO "B12"]
[WhiteElo "2428"]
[BlackElo "2529"]
[Annotator "TA"]
[PlyCount "130"]
[EventDate "2024.02.18"]
[EventType "swiss"]
[EventCountry "FRA"]
[SourceTitle "playchess.com"]
[Source "ChessBase"]
[SourceQuality "1"]
[TimeControl "40/5400+30:1800+30"]

{[%evp 38,130,-39,-52,-50,-82,-89,-92,-76,-136,-130,-143,-143,-138,-53,-67,-64,-67,-53,-60,-60,-60,-53,-53,-53,-53,0,-51,-39,-52,-39,-63,-63,-79,-72,-74,-70,-63,-62,-83,-83,-73,-35,-68,-35,-35,-12,-24,-24,-27,-14,-25,-18,-11,0,-58,0,0,0,-58,-58,-58,-58,-58,0,0,0,0,0,0,0,0,0,0,0,0,0,0,0,0,0,-27,0,0,0,0,0,0,0,0,0,0,0,0,0]} 1. e4 {[%emt 0:08:25]} c6 2. Nf3 {[%emt 1:23:05]} d5 {[%emt 1:31:30]} 3. e5 {[%emt 0:00:00]} Bf5 {[%emt 0:00:30]} 4. Be2 {[%emt 0:00:00]} e6 {[%emt 0:00:00]} 5. d4 {[%emt 0:00:00]} c5 {[%emt 0:01:00]} 6. c3 {[%emt 0:00:00]} Nc6 {[%emt 0:00:00]} 7. O-O {[%emt 0:00:00]} Bg4 {[%emt 0:01:00]} 8. Be3 {[%emt 0:03:00]} cxd4 {[%emt 0:00:00]} 9. cxd4 {[%emt 0:00:00]} Nge7 {[%emt 0:01:00]} 10. Nbd2 {[%emt 0:01:00]} Nf5 {[%emt 0:00:30]} 11. Bb5 {[%emt 0:00:30]} Be7 {[%emt 0:00:00]} 12. Rc1 {[%emt 0:00:30]} O-O {[%emt 0:00:00]} 13. Bxc6 {[%emt 0:00:00]} bxc6 {[%emt 0:00:00]} 14. Rxc6 {[%emt 0:01:00]} Qa5 {[%emt 0:02:00]} 15. a4 {[%emt 0:00:30]} Nxe3 {[%emt 0:00:00]} 16. fxe3 {[%emt 0:00:00]} Bf5 {[%emt 0:01:00]} 17. b3 {[%emt 0:01:00]} Rac8 {[%emt 0:00:30]} 18. Qc1 {[%emt 0:00:30]} Ba3 {[%emt 0:00:00]} 19. Rxc8 {[%emt 0:00:00]} Bxc1 {[%emt 0:00:00]} 20. Rfxc1 {[%emt 0:00:00]} g5 {[%emt 0:01:30]} 21. R1c5 {[%emt 0:01:30]} Qa6 {[%emt 0:00:30]} 22. Rxf8+ {[%emt 0:00:00]} Kxf8 {[%emt 0:00:30]} 23. Nxg5 {[%emt 0:01:00]} (23. Rb5 $142) 23... Qd3 $17 {[%emt 0:00:30]} 24. Ngf3 {[%emt 0:00:30]} Qxe3+ {[%emt 0:00:00]} 25. Kh1 {[%emt 0:00:30]} Kg7 {[%emt 0:01:00]} (25... Bg4 $17 {And now ...Bxf3 would win.} 26. a5 Bxf3 27. Rc8+ Kg7 28. Nxf3 Qxb3) 26. h3 {[%emt 0:00:30]} a6 {[%emt 0:00:30]} 27. Rc6 {[%emt 0:00:30]} Qe2 {[%emt 0:00:30]} 28. Kh2 {[%emt 0:00:30]} Be4 {[%emt 0:00:30]} 29. Kg3 {[%emt 0:00:30]} h6 {[%emt 0:00:30]} 30. Rc7 {[%emt 0:00:30]} Qd3 {[%emt 0:00:30]} 31. Rc6 {[%emt 0:00:30]} Qe2 {[%emt 0:00:30]} (31... Bg6 $15) 32. Rc3 {[%emt 0:00:30]} (32. Rc7 $1 $11) 32... Kf8 {[%emt 0:00:00]} 33. Rc7 {[%emt 0:00:30]} Ke8 {[%emt 0:01:00]} 34. Rb7 {[%emt 0:00:30]} Bg6 {[%emt 0:00:30]} 35. Ra7 {[%emt 0:00:30]} Kd8 {[%emt 0:00:00]} 36. Rb7 {[%emt 0:00:00]} Kc8 {[%emt 0:00:00]} 37. Re7 {[%emt 0:01:00]} Kb8 {[%emt 0:00:00]} 38. h4 {[%emt 0:00:30]} Qe3 {[%emt 0:02:00]} 39. Rd7 {[%emt 0:00:30]} a5 {[%emt 0:00:00]} 40. Rd8+ {[%emt 0:00:30]} Kc7 {[%emt 0:01:00]} 41. Ra8 {[%emt 0:03:18]} Qc3 {[%emt 0:30:30]} 42. Rh8 {[%emt 0:27:42]} h5 {[%emt 0:00:30]} 43. Kf4 $1 {[%emt 0:00:00]} Qb4 {[%emt 0:00:30]} 44. g4 {[%emt 0:00:00]} hxg4 {[%emt 0:00:00]} 45. Kxg4 {[%emt 0:01:30]} Qe7 {[%emt 0:01:00]} 46. h5 {[%emt 0:00:30]} (46. Kg3 $11) 46... Bf5+ {[%emt 0:00:30]} (46... f5+ $1 $15 47. exf6 Qxf6) 47. Kg3 $1 $11 {[%emt 0:00:30]} f6 {[%emt 0:00:00]} 48. exf6 {[%emt 0:00:00]} (48. h6 $11) 48... Qxf6 $15 {[%emt 0:00:00]} 49. Rg8 {[%emt 0:01:00]} Bh7 {[%emt 0:01:30]} 50. Rg4 {[%emt 0:00:30]} Bc2 {[%emt 0:00:30]} ({Better is} 50... Qh6 $15 51. Rg5 Bc2) 51. Ne5 $11 {[%emt 0:00:30]} Qh6 {[%emt 0:00:30]} 52. Ndf3 {[%emt 0:00:30]} Bd1 {[%emt 0:00:30]} 53. Rg5 {[%emt 0:00:30]} Kb7 {[%emt 0:00:30]} 54. Ng4 {[%emt 0:00:30]} Qf8 {[%emt 0:00:00]} 55. Nfe5 {[%emt 0:00:30]} Qf1 {[%emt 0:00:00]} (55... Bxb3 56. h6 Qa3 (56... Bxa4 57. h7 $16) 57. Rg7+ Kc8 58. Kh4 $18) 56. Rg7+ {[%emt 0:00:00]} Ka6 {[%emt 0:01:30]} 57. h6 {[%emt 0:01:00]} Qe1+ {[%emt 0:00:30]} 58. Kg2 {[%emt 0:00:30]} Bc2 {[%emt 0:00:30]} 59. Nf2 {[%emt 0:00:30]} Be4+ {[%emt 0:00:00]} 60. Nxe4 {[%emt 0:00:00]} dxe4 (60... Qxe4+ $2 {loses.} 61. Nf3 Qc2+ 62. Kg3 $18) 61. h7 {[%emt 0:01:00]} Qd2+ {[%emt 0:01:30]} 62. Kg3 {[%emt 0:00:30]} Qe3+ {[%emt 0:00:30]} 63. Kg2 {[%emt 0:00:30]} Qd2+ {[%emt 0:00:30]} 64. Kg3 {[%emt 0:00:30]} Qe3+ {[%emt 0:00:30]} 65. Kg2 {[%emt 0:00:30]} Qd2+ {[%emt 0:00:30]} 1/2-1/2

[Event "22nd Rochefort Festival Masters 2024"]
[Site "Rochefort"]
[Date "2024.02.20"]
[Round "6.4"]
[White "Dalaud, Dorian"]
[Black "Roshka, Yevgeniy"]
[Result "1/2-1/2"]
[ECO "B06"]
[WhiteElo "2329"]
[BlackElo "2474"]
[Annotator "TA"]
[PlyCount "102"]
[EventDate "2024.02.18"]
[EventType "swiss"]
[EventCountry "FRA"]
[SourceTitle "playchess.com"]
[Source "ChessBase"]
[SourceQuality "1"]
[TimeControl "40/5400+30:1800+30"]

{[%evp 24,102,-66,-72,-52,-114,-100,-157,-93,-87,-97,-84,-96,-97,-94,-176,-105,-293,-289,-272,-296,-473,-461,-403,-130,-122,-131,-128,-129,-134,-128,-128,-114,-93,-115,-199,-202,-249,-222,-232,-67,-68,-37,-24,-45,-42,-43,-100,-56,-58,-37,-15,-16,-199,-191,-130,-183,-259,0,0,0,-5,0,0,0,0,0,0,0,0,0,0,0,0,0,0,0,0,0,0,0]} 1. e4 {[%emt 0:07:37]} g6 {[%emt 0:00:08]} 2. d4 {[%emt 0:00:16]} Bg7 {[%emt 1:31:22]} 3. Nc3 {[%emt 0:00:59]} d6 {[%emt 0:00:00]} 4. Be3 {[%emt 0:00:06]} a6 {[%emt 0:01:00]} 5. h4 {[%emt 0:01:12]} h6 {[%emt 0:00:30]} 6. h5 {[%emt 0:05:19]} g5 {[%emt 0:00:00]} 7. f4 {[%emt 0:00:03]} gxf4 {[%emt 0:00:00]} 8. Bxf4 {[%emt 0:00:05]} Nd7 {[%emt 0:01:30]} 9. Nf3 {[%emt 0:15:54]} c5 {[%emt 0:00:30]} 10. d5 {[%emt 0:06:09]} b5 {[%emt 0:00:30]} 11. Qd2 {[%emt 0:01:10]} Ngf6 {[%emt 0:00:30]} 12. Qe2 {[%emt 0:57:40]} Ng4 {[%emt 0:00:00]} 13. Nd1 {[%emt 0:00:30]} Qa5+ {[%emt 0:01:00]} 14. Qd2 {[%emt 0:00:30]} (14. c3 $15) 14... Qa4 $17 {[%emt 0:00:30]} 15. Qe2 {[%emt 0:00:30]} (15. c4 $142) 15... Nde5 {[%emt 0:00:30]} (15... f5 $142 16. Nh4 Nde5 (16... Qxe4 17. Bxd6 Qxe2+ 18. Bxe2 $17)) 16. c3 {[%emt 0:00:00]} f5 {[%emt 0:00:30]} 17. Nxe5 {[%emt 0:00:00]} Nxe5 {[%emt 0:00:30]} (17... dxe5 18. b3 Qxe4 19. Qxe4 fxe4 20. Bd2 $11) 18. Nf2 {[%emt 0:01:30]} Rf8 {[%emt 0:00:30]} 19. b3 {[%emt 0:00:00]} (19. g3 $17) 19... Qa5 {[%emt 0:00:00]} (19... Qa3 $19 {White must now prevent ...fxe4.} 20. Qd2 fxe4) 20. Bd2 $2 {[%emt 0:01:00]} (20. Rc1 $17 {is a better defense.}) 20... c4 $19 {[%emt 0:00:00]} 21. b4 {[%emt 0:00:00]} Qa3 {[%emt 0:01:30]} 22. Qe3 {[%emt 0:01:00]} (22. exf5 {keeps fighting.} Bxf5 (22... Qb2 $2 23. Rd1 $19) 23. Qe3) 22... f4 {[%emt 0:00:00]} 23. Qb6 {[%emt 0:00:00]} Nd7 $2 {[%emt 0:00:00]} (23... Qb2 24. Rc1 $19) (23... a5 $19 24. bxa5 Bd7 (24... Rxa5 $2 25. Be2 $19) (24... Qxa5 $2 25. Qxa5 Rxa5 26. a3 $19)) 24. Qa5 $17 {[%emt 0:01:00]} Qxa5 $1 {[%emt 0:00:00]} 25. bxa5 {[%emt 0:00:00]} Nc5 {[%emt 0:00:00]} 26. Be2 {[%emt 0:01:00]} e6 {[%emt 0:02:30]} 27. O-O-O {[%emt 0:00:30]} Na4 {[%emt 0:00:00]} 28. dxe6 {[%emt 0:00:30]} Bxc3 {[%emt 0:01:00]} 29. Bg4 {[%emt 0:00:30]} (29. Kc2 $17 Bxd2 30. Rxd2 Bxe6 (30... Ke7 31. Ng4 $11) 31. Ng4) 29... Ke7 $1 $19 {[%emt 0:00:30]} 30. Nh3 {[%emt 0:00:30]} Bxd2+ {[%emt 0:00:00]} 31. Rxd2 {[%emt 0:00:30]} Nc5 $2 {[%emt 0:01:00]} (31... Bxe6 $19 32. Bxe6 Kxe6) 32. Rf1 $15 {[%emt 0:00:30]} Bxe6 {[%emt 0:00:30]} (32... Nxe4 $2 {perishes.} 33. Nxf4 Ke8 (33... Rxf4 $2 34. Rxf4 Ng5 35. Rfd4 $18) 34. Rdd1 $18) 33. Nxf4 $1 {[%emt 0:00:00]} Kd7 {[%emt 0:00:30]} 34. Bxe6+ {[%emt 0:00:00]} Nxe6 {[%emt 0:00:00]} 35. g3 {[%emt 0:01:30] [#]} Nc5 $1 {[%emt 0:01:00]} 36. Re1 {[%emt 0:00:30]} Kc6 $1 {[%emt 0:00:30]} 37. e5 {[%emt 0:00:00]} dxe5 {[%emt 0:00:00]} 38. Rxe5 $2 {[%emt 0:00:00]} (38. Ng6 $11 {and White is okay.}) 38... Rae8 $19 {[%emt 0:01:00]} 39. Rxe8 {[%emt 0:00:00]} Rxe8 {[%emt 0:00:30]} 40. Kc2 {[%emt 0:02:00] [#]} (40. Re2 $142 Re4 41. Kd1) 40... Re3 $2 {[%emt 0:00:30]} (40... b4 $1 $19 {And now ...Re3 would win.} 41. Rd4 Kb5) 41. Nd5 $11 {[%emt 0:30:30]} Rxg3 {[%emt 0:00:00]} (41... Ra3 $5 42. Nb4+ $8 Kc7 $11) 42. Nb4+ {[%emt 0:00:30]} Kb7 {[%emt 0:00:00]} 43. Rd6 {[%emt 0:00:00]} Rg2+ {[%emt 0:00:00]} 44. Kc1 {[%emt 0:01:00]} Nd3+ {[%emt 0:00:00]} 45. Nxd3 {[%emt 0:00:00]} cxd3 {[%emt 0:32:30]} 46. a3 {[%emt 0:01:00]} Rc2+ {[%emt 0:00:00]} 47. Kd1 {[%emt 0:00:30]} Rc6 {[%emt 0:01:00]} 48. Rd7+ {[%emt 0:00:30]} Rc7 {[%emt 0:00:00]} 49. Rd6 {[%emt 0:00:30]} Rc6 {[%emt 0:00:00]} 50. Rd7+ {[%emt 0:00:30]} Rc7 {[%emt 0:00:00]} 51. Rd6 {[%emt 0:00:30]} Rc6 {[%emt 0:02:00]} 1/2-1/2

[Event "22nd Rochefort Festival Masters 2024"]
[Site "Rochefort"]
[Date "2024.02.20"]
[Round "6.5"]
[White "Colin, Vincent"]
[Black "Terrieux, Kevin"]
[Result "1/2-1/2"]
[ECO "B33"]
[WhiteElo "2311"]
[BlackElo "2432"]
[Annotator "TA"]
[PlyCount "92"]
[EventDate "2024.02.18"]
[EventType "swiss"]
[EventCountry "FRA"]
[SourceTitle "playchess.com"]
[Source "ChessBase"]
[SourceQuality "1"]
[TimeControl "40/5400+30:1800+30"]

{[%evp 11,92,46,56,-25,32,34,62,31,29,29,43,24,38,29,39,22,35,30,109,68,58,66,112,109,109,105,119,16,16,22,18,29,34,33,21,18,12,6,7,6,14,0,50,45,48,35,56,51,60,52,52,52,52,52,71,71,86,70,86,86,86,86,86,74,86,86,86,86,86,86,86,86,86,86,86,86,86,86,86,86,86,86,86]} 1. e4 {[%emt 0:00:08]} c5 {[%emt 0:00:20]} 2. Nf3 {[%emt 0:00:13]} Nc6 {[%emt 0:00:43]} 3. d4 {[%emt 0:00:15]} cxd4 {[%emt 0:00:36]} 4. Nxd4 {[%emt 1:31:54]} Qb6 {[%emt 1:30:51]} 5. Nb3 {[%emt 0:00:00]} Nf6 {[%emt 0:00:30]} 6. Nc3 {[%emt 0:00:00]} e6 {[%emt 0:00:00]} 7. g4 {[%emt 0:01:30] [#]} ({Better is} 7. Be3 $14 Qc7 8. a3) 7... d5 $1 {[%emt 0:01:00]} 8. Be3 $14 {[%emt 0:00:30]} Qd8 {[%emt 0:00:00]} 9. g5 {[%emt 0:00:00] White is slightly better.} Nxe4 {[%emt 0:00:00]} 10. Nxe4 {[%emt 0:00:00]} dxe4 {[%emt 0:00:00]} 11. Qxd8+ {[%emt 0:01:30]} Kxd8 {[%emt 0:02:00]} 12. O-O-O+ {[%emt 0:00:00]} Kc7 {[%emt 0:00:00]} 13. Bg2 $36 {[%emt 0:00:00][%mdl 2048] White fights for an advantage.} e5 {[%emt 0:00:00] Against Nd4} 14. Bxe4 {[%emt 0:01:30]} f5 {[%emt 0:00:00]} (14... h6 $11) 15. gxf6 {[%emt 0:00:00]} (15. Bxc6 {simplifies} bxc6 16. Bd2 Rb8 17. Ba5+) 15... gxf6 {[%emt 0:00:00]} 16. Rhg1 {[%emt 0:01:00]} Be6 {[%emt 0:02:30]} (16... b6 $14) 17. Nc5 $16 {[%emt 0:00:00] White has more active pieces.} Bxc5 {[%emt 0:00:30]} 18. Bxc5 {[%emt 0:00:00]} Rag8 {[%emt 0:00:30] Wards off Rg7+} 19. Bxc6 {[%emt 0:00:00] This pair of bishops is nice.} ({White should play} 19. Rg3 $16) 19... Rxg1 $11 {[%emt 0:00:30]} 20. Rxg1 {[%emt 0:00:00]} Kxc6 $16 {[%emt 0:00:00][%mdl 4096] Endgame. KRB-KRB} 21. Be7 {[%emt 0:02:30]} f5 {[%emt 0:01:00][%cal Oh8g8]} 22. Bf6 {[%emt 0:00:00][%csl LRe5,LRh8]} Rg8 {[%emt 0:00:00]} 23. Rxg8 {[%emt 0:00:00]} Bxg8 {[%emt 0:01:00]} 24. Bxe5 $11 {[%emt 0:00:00] KB-KB} Kd5 {[%emt 0:00:00]} 25. Bb8 {[%emt 0:00:00]} a6 {[%emt 0:00:00][%cal Ba7a6,Ba6a5][%mdl 32]} 26. f3 {[%emt 0:02:30]} Kc5 {[%emt 0:01:30]} (26... Kd4 $11) 27. Ba7+ $14 {[%emt 0:00:30]} b6 {[%emt 0:00:30][%cal Bb7b6,Bb6b5,Bb5a4][%mdl 32]} 28. Kd2 {[%emt 0:00:30]} Kc6 {[%emt 0:00:30][%cal Oc6b7] And now ...Kb7! would win.} 29. Bb8 $1 {[%emt 0:00:30]} b5 {[%emt 0:00:30]} 30. a3 {[%emt 0:00:00]} a5 {[%emt 0:00:30]} 31. Ke3 {[%emt 0:01:00]} Bd5 {[%emt 0:00:30]} 32. Kf4 {[%emt 0:00:00]} h5 {[%emt 0:00:30]} 33. b3 {[%emt 0:01:00]} ({But not} 33. Kxf5 Bxf3 34. Bg3 Bd1 $11) 33... a4 {[%emt 0:00:30]} 34. bxa4 {[%emt 0:00:00]} ({Much worse is} 34. Kxf5 $6 Bxf3 35. bxa4 bxa4 $11) 34... bxa4 {[%emt 0:00:00]} 35. c4 {[%emt 0:00:00] White is better.} ({Reject} 35. Kxf5 $6 Bxf3 36. Kg5 Bd1 $11) 35... Bxc4 {[%emt 0:01:00]} 36. Kxf5 {[%emt 0:01:30]} Kd7 {[%emt 0:00:30]} 37. Bg3 {[%emt 0:00:30]} Ke8 {[%emt 0:00:30]} 38. Kg6 {[%emt 0:00:30]} Bf7+ {[%emt 0:00:00]} 39. Kg7 {[%emt 0:00:30]} Bd5 {[%emt 0:00:00]} 40. f4 {[%emt 0:00:00][%cal Bf3f4,Bf4f5][%mdl 32]} Be6 {[%emt 0:01:30]} 41. Bh4 {[%emt 0:31:00]} Bf7 {[%emt 0:27:04]} 42. f5 {[%emt 0:00:30]} Bc4 {[%emt 0:03:56]} 43. Be1 {[%emt 0:00:00]} Bf7 {[%emt 0:00:30]} 44. Bb4 {[%emt 0:00:00]} Bc4 {[%emt 0:00:30]} 45. Kg6 {[%emt 0:00:00]} Bf7+ {[%emt 0:00:30]} 46. Kg5 {[%emt 0:00:00]} Kd7 {[%emt 0:00:30] Weighted Error Value: White=0.13 (very precise) /Black=0.13 (very precise) .  Mistake:       	White=1     	Black=4      Inaccurate:     	White=2     	Black=1      OK:         	White=17    	Black=18     Best:        	White=2     	---        Strong:       	White=1     	---} 1/2-1/2

[Event "22nd Rochefort Festival Masters 2024"]
[Site "Rochefort"]
[Date "2024.02.21"]
[Round "7.1"]
[White "Droin, Augustin"]
[Black "Sivuk, Vitaly"]
[Result "1/2-1/2"]
[ECO "C88"]
[WhiteElo "2471"]
[BlackElo "2502"]
[Annotator "TA"]
[PlyCount "113"]
[EventDate "2024.02.18"]
[EventType "swiss"]
[EventCountry "FRA"]
[SourceTitle "playchess.com"]
[Source "ChessBase"]
[SourceQuality "1"]
[TimeControl "40/5400+30:1800+30"]

{[%evp 22,113,20,14,19,9,8,16,10,12,25,-57,-52,-59,-55,-68,-68,-64,-50,-63,-62,-65,6,-68,-87,-69,-24,-17,-14,-26,0,0,0,-34,-23,-36,-19,-24,-16,-18,-14,-18,-16,-27,-11,-9,-10,-21,0,-6,0,0,0,0,0,0,0,0,0,0,0,0,0,0,0,0,0,0,0,-14,0,0,0,0,0,0,0,0,0,0,-4,-8,-8,-9,0,-26,-26,-26,0,0,0,-25,0,0]} 1. e4 {[%emt 1:31:00]} e5 {[%emt 0:04:38]} 2. Nf3 {[%emt 0:00:00]} Nc6 {[%emt 0:00:06]} 3. Bb5 {[%emt 0:01:00]} a6 {[%emt 1:27:16]} 4. Ba4 {[%emt 0:00:30]} Nf6 {[%emt 0:00:30]} 5. O-O {[%emt 0:00:00]} Be7 {[%emt 0:00:00]} 6. Re1 {[%emt 0:00:00]} b5 {[%emt 0:00:00]} 7. Bb3 {[%emt 0:00:00]} O-O {[%emt 0:01:30]} 8. a4 {[%emt 0:02:00]} Bb7 {[%emt 0:00:00]} 9. d3 {[%emt 0:00:00]} d6 {[%emt 0:01:00]} 10. Bd2 {[%emt 0:01:00]} Qd7 {[%emt 0:00:30]} 11. Nc3 {[%emt 0:00:30][%cal Bb1c3,Bc3e2,Be2g3][%mdl 32]} Na5 {[%emt 0:00:00]} 12. Ba2 {[%emt 0:00:30]} b4 {[%emt 0:00:00]} 13. Ne2 {[%emt 0:00:00]} c5 {[%emt 0:00:00]} 14. Ng3 {[%emt 0:01:00]} Rab8 {[%emt 0:02:00]} 15. h3 {[%emt 0:00:30]} Bc6 {[%emt 0:00:30]} 16. Bc4 {[%emt 0:00:30]} (16. Nf5 $11) 16... Nxc4 $15 {[%emt 0:00:30]} 17. dxc4 {[%emt 0:00:30]} Ne8 {[%emt 0:00:30]} 18. b3 {[%emt 0:00:30]} g6 {[%emt 0:00:00]} 19. Bh6 {[%emt 0:00:00]} Ng7 {[%emt 0:01:00]} 20. Qd3 {[%emt 0:01:00]} f5 {[%emt 0:00:30]} 21. Rad1 {[%emt 0:00:30][%cal Of3e5]} Rbd8 {[%emt 0:00:30]} (21... f4 $15 22. Nf1 Qb7) 22. c3 {[%emt 0:00:30]} ({White should play} 22. Nxf5 $11 gxf5 23. Nxe5) 22... f4 {[%emt 0:00:30]} 23. Nf1 {[%emt 0:00:00]} Qb7 {[%emt 0:00:00]} 24. cxb4 {[%emt 0:00:00]} Qxb4 {[%emt 0:01:00]} 25. g3 {[%emt 0:01:30]} fxg3 {[%emt 0:00:00]} 26. fxg3 {[%emt 0:00:30]} Rf7 {[%emt 0:01:00]} 27. Bxg7 {[%emt 0:00:00]} Kxg7 {[%emt 0:00:30]} 28. N1d2 {[%emt 0:01:00]} Rdf8 {[%emt 0:00:00]} 29. Rf1 {[%emt 0:00:30]} Qb7 {[%emt 0:01:00]} 30. Kg2 {[%emt 0:00:30]} h5 {[%emt 0:00:30]} 31. h4 {[%emt 0:00:30]} Qc8 {[%emt 0:00:00]} 32. Nh2 {[%emt 0:00:30]} Qe6 {[%emt 0:00:00]} (32... Bf6 {simplifies} 33. Rf2 Kg8 34. Ndf3 Qd7) 33. Rxf7+ {[%emt 0:00:00]} Rxf7 {[%emt 0:01:30]} 34. Rf1 {[%emt 0:01:00]} Rxf1 {[%emt 0:00:30]} 35. Nhxf1 {[%emt 0:00:30]} Bd7 {[%emt 0:00:30]} 36. Nf3 {[%emt 0:00:30]} Qh3+ {[%emt 0:00:00]} 37. Kg1 {[%emt 0:00:30]} Bc6 {[%emt 0:00:00]} 38. Kf2 {[%emt 0:00:00]} Qg4 {[%emt 0:01:30]} 39. N3d2 {[%emt 0:00:00]} Qh3 {[%emt 0:00:00]} 40. Qf3 {[%emt 0:01:30]} Bd8 {[%emt 0:01:00]} 41. Qd3 {[%emt 0:29:59]} Be7 {[%emt 0:30:30]} 42. Nf3 {[%emt 0:01:01]} Qg4 {[%emt 0:00:00]} 43. N1d2 {[%emt 0:00:30]} Kf7 {[%emt 0:01:00]} 44. Kg2 {[%emt 0:00:00]} Ke8 {[%emt 0:00:30]} 45. Nh2 {[%emt 0:01:00]} Qe6 {[%emt 0:00:30]} 46. Qf3 {[%emt 0:00:30]} Qf7 {[%emt 0:00:30]} 47. Qe3 {[%emt 0:00:30]} Qf5 {[%emt 0:00:00]} 48. Kg1 {[%emt 0:00:30]} Qh3 {[%emt 0:01:00] Strongly threatening ...Bxh4.} 49. Qf3 {[%emt 0:00:30]} g5 {[%emt 0:00:30]} 50. Qxh5+ {[%emt 0:00:00]} Kd8 {[%emt 0:00:00]} 51. Nhf1 {[%emt 0:00:00]} gxh4 {[%emt 0:00:00]} 52. Qh8+ {[%emt 0:01:30]} Kd7 {[%emt 0:00:00]} 53. Qh5 {[%emt 0:00:30] Inhibits Qg4.} Kc7 {[%emt 0:02:00]} 54. Qh7 {[%emt 0:00:30]} Kd8 {[%emt 0:00:00]} 55. Qg8+ {[%emt 0:00:30]} Kc7 {[%emt 0:00:00]} 56. Qh7 {[%emt 0:00:00]} Kd8 {[%emt 0:00:00]} 57. Qg8+ {[%emt 0:00:00] Weighted Error Value: White=0.08 (flawless) /Black=0.09 (flawless) .  Mistake:       	White=2     	Black=1      Inaccurate:     	White=2     	Black=3      OK:         	White=27    	Black=7      Best:        	---       	Black=3} 1/2-1/2